[Event "Titled Tuesday Blitz February 22 Late 2022"]
[White "Kovanova, Baira"]
[Black "Zong, Davis"]
[WhiteFideId "4164083"]
[BlackFideId "30903955"]
[WhiteElo "2190"]
[BlackElo "2061"]
[Result "1-0"]
[Round "09"]
[TimeControl "180+1"]
[Date "2022.02.23"]
[WhiteClock "0:00:18"]
[BlackClock "0:00:07"]

1. e4 {[%clk 0:02:53]}  e5 {[%clk 0:02:59]} 2. Nf3 {[%clk 0:02:53]}  Nc6 {[%clk 0:03:00]} 3. Bb5 {[%clk 0:02:54]}  a6 {[%clk 0:03:00]} 4. Ba4 {[%clk 0:02:54]}  Nf6 {[%clk 0:03:01]} 5. O-O {[%clk 0:02:54]}  Be7 {[%clk 0:03:02]} 6. d3 {[%clk 0:02:54]}  b5 {[%clk 0:03:02]} 7. Bb3 {[%clk 0:02:53]}  O-O {[%clk 0:03:03]} 8. c3 {[%clk 0:02:53]}  d6 {[%clk 0:03:03]} 9. Nbd2 {[%clk 0:02:52]}  Na5 {[%clk 0:03:02]} 10. Bc2 {[%clk 0:02:52]}  c5 {[%clk 0:03:03]} 11. Re1 {[%clk 0:02:53]}  Nc6 {[%clk 0:03:04]} 12. Nf1 {[%clk 0:02:53]}  Qc7 {[%clk 0:03:04]} 13. h3 {[%clk 0:02:53]}  Re8 {[%clk 0:03:02]} 14. Ng3 {[%clk 0:02:53]}  d5 {[%clk 0:02:53]} 15. d4 {[%clk 0:02:16]}  cxd4 {[%clk 0:02:27]} 16. cxd4 {[%clk 0:02:15]}  dxe4 {[%clk 0:01:50]} 17. Nxe4 {[%clk 0:02:13]}  Bb7 {[%clk 0:01:43]} 18. dxe5 {[%clk 0:02:05]}  Nxe5 {[%clk 0:01:39]} 19. Nxe5 {[%clk 0:01:26]}  Qxe5 {[%clk 0:01:40]} 20. Ng5 {[%clk 0:01:09]}  Qd5 {[%clk 0:01:40]} 21. Qxd5 {[%clk 0:00:56]}  Bxd5 {[%clk 0:01:41]} 22. Be3 {[%clk 0:00:49]}  Rac8 {[%clk 0:01:39]} 23. Bb3 {[%clk 0:00:48]}  h6 {[%clk 0:01:34]} 24. Nf3 {[%clk 0:00:43]}  Bb4 {[%clk 0:00:55]} 25. Red1 {[%clk 0:00:43]}  Bxb3 {[%clk 0:00:30]} 26. axb3 {[%clk 0:00:43]}  Rc2 {[%clk 0:00:31]} 27. Rxa6 {[%clk 0:00:40]}  Rxb2 {[%clk 0:00:30]} 28. Rb6 {[%clk 0:00:30]}  Ne4 {[%clk 0:00:07]} 29. Rxb5 {[%clk 0:00:29]}  Nc3 {[%clk 0:00:07]} 30. Bd4 {[%clk 0:00:18]} 1-0


[Site "https://www.chess.com"]

[Event "Titled Tuesday Blitz February 22 Late 2022"]
[White "Lehtosaari, Mauri"]
[Black "Goltsev, Dmitry"]
[WhiteFideId "501999"]
[BlackFideId "24176710"]
[WhiteElo "2450"]
[BlackElo "2273"]
[Result "0-1"]
[Round "09"]
[TimeControl "180+1"]
[Date "2022.02.23"]
[WhiteClock "0:00:06"]
[BlackClock "0:00:30"]

1. d4 {[%clk 0:03:00]}  Nf6 {[%clk 0:02:59]} 2. Nf3 {[%clk 0:03:01]}  e6 {[%clk 0:03:00]} 3. Bg5 {[%clk 0:03:01]}  b6 {[%clk 0:03:00]} 4. Nbd2 {[%clk 0:03:02]}  Bb7 {[%clk 0:03:01]} 5. e3 {[%clk 0:02:58]}  Be7 {[%clk 0:03:00]} 6. Bd3 {[%clk 0:02:57]}  h6 {[%clk 0:03:01]} 7. Bh4 {[%clk 0:02:55]}  d6 {[%clk 0:03:01]} 8. O-O {[%clk 0:02:55]}  Nbd7 {[%clk 0:03:01]} 9. c4 {[%clk 0:02:53]}  e5 {[%clk 0:03:02]} 10. dxe5 {[%clk 0:02:48]}  dxe5 {[%clk 0:03:02]} 11. Qc2 {[%clk 0:02:41]}  O-O {[%clk 0:02:48]} 12. Rfd1 {[%clk 0:02:32]}  Qe8 {[%clk 0:02:40]} 13. Ne4 {[%clk 0:01:52]}  Nxe4 {[%clk 0:02:18]} 14. Bxe4 {[%clk 0:01:50]}  Bxe4 {[%clk 0:02:12]} 15. Qxe4 {[%clk 0:01:51]}  Bxh4 {[%clk 0:02:10]} 16. Nxh4 {[%clk 0:01:45]}  Nc5 {[%clk 0:02:09]} 17. Qf5 {[%clk 0:01:23]}  Rd8 {[%clk 0:02:04]} 18. b3 {[%clk 0:01:14]}  Qe7 {[%clk 0:01:56]} 19. Nf3 {[%clk 0:01:07]}  Rxd1+ {[%clk 0:01:55]} 20. Rxd1 {[%clk 0:01:07]}  Rd8 {[%clk 0:01:56]} 21. Rxd8+ {[%clk 0:01:03]}  Qxd8 {[%clk 0:01:57]} 22. h4 {[%clk 0:01:02]}  e4 {[%clk 0:01:56]} 23. Ne5 {[%clk 0:00:59]}  f6 {[%clk 0:01:50]} 24. Ng6 {[%clk 0:00:54]}  Qd1+ {[%clk 0:01:35]} 25. Kh2 {[%clk 0:00:54]}  Qd6+ {[%clk 0:01:36]} 26. g3 {[%clk 0:00:52]}  Qe6 {[%clk 0:01:34]} 27. Qf4 {[%clk 0:00:45]}  Qd6 {[%clk 0:01:25]} 28. Qf5 {[%clk 0:00:40]}  Qd7 {[%clk 0:01:21]} 29. Qf4 {[%clk 0:00:37]}  Nd3 {[%clk 0:01:07]} 30. Qxe4 {[%clk 0:00:34]}  Nxf2 {[%clk 0:01:07]} 31. Qa8+ {[%clk 0:00:28]}  Kf7 {[%clk 0:01:06]} 32. h5 {[%clk 0:00:21]}  Ng4+ {[%clk 0:01:05]} 33. Kg1 {[%clk 0:00:20]}  Qd1+ {[%clk 0:01:03]} 34. Kg2 {[%clk 0:00:20]}  Qe2+ {[%clk 0:01:04]} 35. Kh3 {[%clk 0:00:19]}  Nf2+ {[%clk 0:01:00]} 36. Kh2 {[%clk 0:00:17]}  Ne4+ {[%clk 0:00:58]} 37. Kh3 {[%clk 0:00:16]}  Qxh5+ {[%clk 0:00:58]} 38. Nh4 {[%clk 0:00:17]}  Ng5+ {[%clk 0:00:54]} 39. Kh2 {[%clk 0:00:11]}  Qe2+ {[%clk 0:00:53]} 40. Kh1 {[%clk 0:00:11]}  Qxe3 {[%clk 0:00:47]} 41. Qd5+ {[%clk 0:00:10]}  Qe6 {[%clk 0:00:47]} 42. Qd3 {[%clk 0:00:07]}  a5 {[%clk 0:00:42]} 43. Qg6+ {[%clk 0:00:05]}  Kf8 {[%clk 0:00:42]} 44. Nf5 {[%clk 0:00:05]}  Qf7 {[%clk 0:00:40]} 45. Qxf7+ {[%clk 0:00:03]}  Kxf7 {[%clk 0:00:41]} 46. Kg2 {[%clk 0:00:03]}  Ne4 {[%clk 0:00:41]} 47. Kf3 {[%clk 0:00:03]}  Nc3 {[%clk 0:00:42]} 48. a3 {[%clk 0:00:02]}  a4 {[%clk 0:00:41]} 49. bxa4 {[%clk 0:00:02]}  Nxa4 {[%clk 0:00:41]} 50. Nd4 {[%clk 0:00:03]}  Nb2 {[%clk 0:00:41]} 51. Nb5 {[%clk 0:00:01]}  Nxc4 {[%clk 0:00:41]} 52. Nxc7 {[%clk 0:00:01]}  Nxa3 {[%clk 0:00:41]} 53. Nd5 {[%clk 0:00:01]}  b5 {[%clk 0:00:42]} 54. Ke4 {[%clk 0:00:01]}  b4 {[%clk 0:00:40]} 55. Kd4 {[%clk 0:00:01]}  b3 {[%clk 0:00:40]} 56. Kc3 {[%clk 0:00:01]}  Nb5+ {[%clk 0:00:39]} 57. Kxb3 {[%clk 0:00:02]}  Nd4+ {[%clk 0:00:39]} 58. Kc4 {[%clk 0:00:02]}  Nf5 {[%clk 0:00:39]} 59. g4 {[%clk 0:00:02]}  Nd6+ {[%clk 0:00:40]} 60. Kd4 {[%clk 0:00:02]}  g6 {[%clk 0:00:38]} 61. Ke3 {[%clk 0:00:02]}  Nc4+ {[%clk 0:00:36]} 62. Kf4 {[%clk 0:00:02]}  Ne5 {[%clk 0:00:35]} 63. Ne3 {[%clk 0:00:01]}  Ke6 {[%clk 0:00:34]} 64. Nc2 {[%clk 0:00:02]}  g5+ {[%clk 0:00:34]} 65. Kg3 {[%clk 0:00:02]}  f5 {[%clk 0:00:32]} 66. gxf5+ {[%clk 0:00:02]}  Kxf5 {[%clk 0:00:33]} 67. Ne3+ {[%clk 0:00:03]}  Kg6 {[%clk 0:00:33]} 68. Nd5 {[%clk 0:00:04]}  h5 {[%clk 0:00:32]} 69. Ne3 {[%clk 0:00:05]}  h4+ {[%clk 0:00:31]} 70. Kh3 {[%clk 0:00:05]}  Kh5 {[%clk 0:00:30]} 71. Nf5 {[%clk 0:00:04]}  g4+ {[%clk 0:00:30]} 72. Kg2 {[%clk 0:00:05]}  Kg5 {[%clk 0:00:30]} 73. Nd4 {[%clk 0:00:05]}  Nd3 {[%clk 0:00:29]} 74. Ne6+ {[%clk 0:00:05]}  Kf5 {[%clk 0:00:29]} 75. Nd4+ {[%clk 0:00:06]}  Ke4 {[%clk 0:00:29]} 76. Ne6 {[%clk 0:00:06]}  Nf4+ {[%clk 0:00:29]} 77. Nxf4 {[%clk 0:00:06]}  Kxf4 {[%clk 0:00:30]} 0-1


[Site "https://www.chess.com"]

[Event "Titled Tuesday Blitz February 22 Late 2022"]
[White "Levine, Joseph"]
[Black "Peterson, Eric"]
[WhiteFideId "30940346"]
[BlackFideId "14908395"]
[WhiteElo "1802"]
[BlackElo "2195"]
[Result "1/2-1/2"]
[Round "09"]
[TimeControl "180+1"]
[Date "2022.02.23"]
[WhiteClock "0:00:44"]
[BlackClock "0:01:27"]

1. e4 {[%clk 0:03:00]}  e6 {[%clk 0:03:00]} 2. Nf3 {[%clk 0:03:00]}  d5 {[%clk 0:03:00]} 3. exd5 {[%clk 0:02:58]}  exd5 {[%clk 0:03:00]} 4. d4 {[%clk 0:02:59]}  Bd6 {[%clk 0:03:00]} 5. Bd3 {[%clk 0:02:59]}  Ne7 {[%clk 0:02:58]} 6. O-O {[%clk 0:02:57]}  Nbc6 {[%clk 0:02:59]} 7. c3 {[%clk 0:02:56]}  Bg4 {[%clk 0:02:59]} 8. Re1 {[%clk 0:02:54]}  Qd7 {[%clk 0:02:55]} 9. h3 {[%clk 0:02:48]}  Bh5 {[%clk 0:02:55]} 10. Nbd2 {[%clk 0:02:31]}  Bg6 {[%clk 0:02:53]} 11. Nf1 {[%clk 0:02:31]}  O-O {[%clk 0:02:51]} 12. Bg5 {[%clk 0:02:25]}  f6 {[%clk 0:02:49]} 13. Bh4 {[%clk 0:02:17]}  Nf5 {[%clk 0:02:47]} 14. Bg3 {[%clk 0:02:10]}  Nxg3 {[%clk 0:02:44]} 15. Nxg3 {[%clk 0:02:10]}  Bxd3 {[%clk 0:02:41]} 16. Qxd3 {[%clk 0:02:10]}  Bxg3 {[%clk 0:02:41]} 17. fxg3 {[%clk 0:02:11]}  Rae8 {[%clk 0:02:40]} 18. g4 {[%clk 0:02:09]}  Ne7 {[%clk 0:02:32]} 19. Nh4 {[%clk 0:02:03]}  Nc8 {[%clk 0:02:09]} 20. Nf5 {[%clk 0:01:57]}  Nd6 {[%clk 0:02:07]} 21. Nxd6 {[%clk 0:01:56]}  Qxd6 {[%clk 0:02:07]} 22. Qf3 {[%clk 0:01:55]}  c6 {[%clk 0:02:06]} 23. Kf2 {[%clk 0:01:54]}  Qd7 {[%clk 0:02:05]} 24. Qf5 {[%clk 0:01:52]}  Qxf5+ {[%clk 0:02:00]} 25. gxf5 {[%clk 0:01:53]}  Kf7 {[%clk 0:02:00]} 26. g4 {[%clk 0:01:50]}  g6 {[%clk 0:01:57]} 27. fxg6+ {[%clk 0:01:49]}  hxg6 {[%clk 0:01:57]} 28. Rxe8 {[%clk 0:01:50]}  Rxe8 {[%clk 0:01:57]} 29. Re1 {[%clk 0:01:50]}  Rxe1 {[%clk 0:01:47]} 30. Kxe1 {[%clk 0:01:51]}  g5 {[%clk 0:01:48]} 31. Kf2 {[%clk 0:01:52]}  Kg6 {[%clk 0:01:48]} 32. Kg3 {[%clk 0:01:47]}  Kg7 {[%clk 0:01:46]} 33. Kf3 {[%clk 0:01:12]}  Kg6 {[%clk 0:01:43]} 34. a4 {[%clk 0:01:06]}  a5 {[%clk 0:01:40]} 35. b4 {[%clk 0:01:02]}  b6 {[%clk 0:01:40]} 36. Kg3 {[%clk 0:00:53]}  Kh6 {[%clk 0:01:31]} 37. h4 {[%clk 0:00:50]}  gxh4+ {[%clk 0:01:30]} 38. Kxh4 {[%clk 0:00:51]}  Kg6 {[%clk 0:01:31]} 39. Kh3 {[%clk 0:00:44]}  Kg5 {[%clk 0:01:25]} 40. Kg3 {[%clk 0:00:44]}  f5 {[%clk 0:01:25]} 41. gxf5 {[%clk 0:00:43]}  Kxf5 {[%clk 0:01:26]} 42. Kf3 {[%clk 0:00:44]}  Kg5 {[%clk 0:01:26]} 43. Kg3 {[%clk 0:00:44]}  Kf5 {[%clk 0:01:27]} 44. Kf3 {[%clk 0:00:44]}  Kg5 {[%clk 0:01:27]} 45. Kg3 {[%clk 0:00:44]}  Kf5 {[%clk 0:01:27]} 1/2-1/2


[Site "https://www.chess.com"]

[Event "Titled Tuesday Blitz February 22 Late 2022"]
[White "Lewtak, Damian"]
[Black "Sharafiev, Azat"]
[WhiteFideId "1141724"]
[BlackFideId "4186214"]
[WhiteElo "2361"]
[BlackElo "2299"]
[Result "1-0"]
[Round "09"]
[TimeControl "180+1"]
[Date "2022.02.22"]
[WhiteClock "0:00:07"]
[BlackClock "0:00:04"]

1. e4 {[%clk 0:03:00]}  c5 {[%clk 0:02:59]} 2. Nc3 {[%clk 0:02:59]}  Nc6 {[%clk 0:02:57]} 3. Nf3 {[%clk 0:02:56]}  e6 {[%clk 0:02:56]} 4. Bb5 {[%clk 0:02:54]}  Nd4 {[%clk 0:02:52]} 5. O-O {[%clk 0:02:54]}  a6 {[%clk 0:02:49]} 6. Bd3 {[%clk 0:02:48]}  Ne7 {[%clk 0:02:48]} 7. Nxd4 {[%clk 0:02:48]}  cxd4 {[%clk 0:02:48]} 8. Ne2 {[%clk 0:02:49]}  Nc6 {[%clk 0:02:48]} 9. c3 {[%clk 0:02:49]}  Bc5 {[%clk 0:02:46]} 10. Qa4 {[%clk 0:02:28]}  Qf6 {[%clk 0:02:12]} 11. b4 {[%clk 0:02:22]}  Ba7 {[%clk 0:02:07]} 12. b5 {[%clk 0:02:18]}  axb5 {[%clk 0:02:04]} 13. Qxb5 {[%clk 0:02:13]}  O-O {[%clk 0:01:59]} 14. Bb2 {[%clk 0:02:07]}  e5 {[%clk 0:01:46]} 15. cxd4 {[%clk 0:02:05]}  exd4 {[%clk 0:01:38]} 16. f4 {[%clk 0:02:04]}  d6 {[%clk 0:01:34]} 17. Ng3 {[%clk 0:01:52]}  Bc5 {[%clk 0:01:11]} 18. a3 {[%clk 0:01:43]}  Ra5 {[%clk 0:00:34]} 19. Qb3 {[%clk 0:01:42]}  Qd8 {[%clk 0:00:33]} 20. Qc2 {[%clk 0:01:36]}  h6 {[%clk 0:00:26]} 21. Kh1 {[%clk 0:01:24]}  Bd7 {[%clk 0:00:26]} 22. Bc4 {[%clk 0:01:20]}  Qa8 {[%clk 0:00:24]} 23. Qd3 {[%clk 0:01:17]}  b5 {[%clk 0:00:18]} 24. Bb3 {[%clk 0:01:13]}  b4 {[%clk 0:00:15]} 25. a4 {[%clk 0:01:08]}  Qa7 {[%clk 0:00:11]} 26. Bc2 {[%clk 0:01:04]}  Ne7 {[%clk 0:00:08]} 27. e5 {[%clk 0:00:58]}  g6 {[%clk 0:00:09]} 28. f5 {[%clk 0:00:45]}  Nxf5 {[%clk 0:00:09]} 29. Nxf5 {[%clk 0:00:43]}  gxf5 {[%clk 0:00:09]} 30. Qg3+ {[%clk 0:00:23]}  Kh8 {[%clk 0:00:07]} 31. Qh3 {[%clk 0:00:20]}  Kg7 {[%clk 0:00:07]} 32. Bxf5 {[%clk 0:00:18]}  Bxf5 {[%clk 0:00:04]} 33. Qxf5 {[%clk 0:00:18]}  Qe7 {[%clk 0:00:03]} 34. exd6 {[%clk 0:00:17]}  Qxd6 {[%clk 0:00:03]} 35. Rf3 {[%clk 0:00:13]}  Qe6 {[%clk 0:00:03]} 36. Rg3+ {[%clk 0:00:11]}  Kh8 {[%clk 0:00:04]} 37. Qf4 {[%clk 0:00:08]}  Bd6 {[%clk 0:00:04]} 38. Bxd4+ {[%clk 0:00:08]}  f6 {[%clk 0:00:04]} 39. Qxh6# {[%clk 0:00:07]} 1-0


[Site "https://www.chess.com"]

[Event "Titled Tuesday Blitz February 22 Late 2022"]
[White "Medeiros Jr, Francisco De Assis"]
[Black "Jarocka, Liwia"]
[WhiteFideId "2114267"]
[BlackFideId "21807558"]
[WhiteElo "1998"]
[BlackElo "1896"]
[Result "1-0"]
[Round "09"]
[TimeControl "180+1"]
[Date "2022.02.23"]
[WhiteClock "0:00:24"]
[BlackClock "0:00:37"]

1. d4 {[%clk 0:02:55]}  d6 {[%clk 0:02:58]} 2. Nf3 {[%clk 0:02:39]}  Nf6 {[%clk 0:02:57]} 3. Bg5 {[%clk 0:02:38]}  g6 {[%clk 0:02:57]} 4. Bxf6 {[%clk 0:02:37]}  exf6 {[%clk 0:02:58]} 5. e3 {[%clk 0:02:35]}  Bg7 {[%clk 0:02:58]} 6. g3 {[%clk 0:02:34]}  O-O {[%clk 0:02:57]} 7. Bg2 {[%clk 0:02:34]}  c5 {[%clk 0:02:57]} 8. c3 {[%clk 0:02:34]}  Nc6 {[%clk 0:02:56]} 9. O-O {[%clk 0:02:20]}  Bg4 {[%clk 0:02:52]} 10. Nbd2 {[%clk 0:02:16]}  Rc8 {[%clk 0:02:49]} 11. h3 {[%clk 0:02:12]}  Bd7 {[%clk 0:02:47]} 12. Ne1 {[%clk 0:02:12]}  b6 {[%clk 0:02:44]} 13. Nd3 {[%clk 0:02:05]}  Bf5 {[%clk 0:02:37]} 14. Nf4 {[%clk 0:02:02]}  Ne7 {[%clk 0:02:28]} 15. Re1 {[%clk 0:02:00]}  Bd7 {[%clk 0:02:27]} 16. a4 {[%clk 0:01:55]}  f5 {[%clk 0:02:26]} 17. h4 {[%clk 0:01:46]}  Bc6 {[%clk 0:02:22]} 18. Qb3 {[%clk 0:01:40]}  Bxg2 {[%clk 0:02:21]} 19. Kxg2 {[%clk 0:01:41]}  Qc7 {[%clk 0:02:17]} 20. a5 {[%clk 0:01:37]}  bxa5 {[%clk 0:02:11]} 21. Qa2 {[%clk 0:01:36]}  Rb8 {[%clk 0:02:10]} 22. Nc4 {[%clk 0:01:24]}  Nc6 {[%clk 0:02:03]} 23. Nd5 {[%clk 0:01:22]}  Qb7 {[%clk 0:01:57]} 24. Nxd6 {[%clk 0:01:18]}  Qd7 {[%clk 0:01:34]} 25. dxc5 {[%clk 0:01:18]}  Ne5 {[%clk 0:01:23]} 26. Red1 {[%clk 0:00:53]}  Qc6 {[%clk 0:01:17]} 27. Qxa5 {[%clk 0:00:48]}  Rxb2 {[%clk 0:01:14]} 28. Qxa7 {[%clk 0:00:48]}  Ng4 {[%clk 0:01:12]} 29. Kg1 {[%clk 0:00:45]}  Nxf2 {[%clk 0:01:09]} 30. Ne7+ {[%clk 0:00:41]}  Kh8 {[%clk 0:01:04]} 31. Nxc6 {[%clk 0:00:41]}  Nh3+ {[%clk 0:01:03]} 32. Kf1 {[%clk 0:00:38]}  Rf2+ {[%clk 0:00:58]} 33. Ke1 {[%clk 0:00:38]}  Bxc3+ {[%clk 0:00:58]} 34. Rd2 {[%clk 0:00:38]}  Bxd2+ {[%clk 0:00:58]} 35. Kd1 {[%clk 0:00:38]}  Bc3 {[%clk 0:00:50]} 36. Ra2 {[%clk 0:00:27]}  Rf1+ {[%clk 0:00:45]} 37. Ke2 {[%clk 0:00:23]}  Rf2+ {[%clk 0:00:41]} 38. Kd3 {[%clk 0:00:23]}  Rxa2 {[%clk 0:00:40]} 39. Qxa2 {[%clk 0:00:24]}  Bg7 {[%clk 0:00:40]} 40. Nxf7+ {[%clk 0:00:24]}  Rxf7 {[%clk 0:00:36]} 41. Qxf7 {[%clk 0:00:25]}  Nf2+ {[%clk 0:00:37]} 42. Ke2 {[%clk 0:00:24]} 1-0


[Site "https://www.chess.com"]

[Event "Titled Tuesday Blitz February 22 Late 2022"]
[White "Moskvin, Anatoly"]
[Black "Papp, Levente"]
[WhiteFideId "24199990"]
[BlackFideId "751243"]
[WhiteElo "2079"]
[BlackElo "2308"]
[Result "1-0"]
[Round "09"]
[TimeControl "180+1"]
[Date "2022.02.23"]
[WhiteClock "0:00:06"]
[BlackClock "0:00:06"]

1. e4 {[%clk 0:03:00]}  e5 {[%clk 0:02:58]} 2. Nf3 {[%clk 0:03:01]}  Nf6 {[%clk 0:02:55]} 3. d4 {[%clk 0:03:00]}  Nxe4 {[%clk 0:02:53]} 4. Bd3 {[%clk 0:03:00]}  d5 {[%clk 0:02:53]} 5. Nxe5 {[%clk 0:02:59]}  Be7 {[%clk 0:02:47]} 6. O-O {[%clk 0:02:53]}  O-O {[%clk 0:02:45]} 7. c4 {[%clk 0:02:53]}  c6 {[%clk 0:02:45]} 8. Nc3 {[%clk 0:02:51]}  Nxc3 {[%clk 0:02:40]} 9. bxc3 {[%clk 0:02:51]}  Nd7 {[%clk 0:02:33]} 10. f3 {[%clk 0:02:44]}  Nxe5 {[%clk 0:02:29]} 11. dxe5 {[%clk 0:02:44]}  Be6 {[%clk 0:02:26]} 12. cxd5 {[%clk 0:02:43]}  Qxd5 {[%clk 0:02:26]} 13. Qe2 {[%clk 0:02:39]}  Rfd8 {[%clk 0:02:23]} 14. Rd1 {[%clk 0:02:38]}  Qc5+ {[%clk 0:02:15]} 15. Qe3 {[%clk 0:02:28]}  Bc4 {[%clk 0:01:51]} 16. Bc2 {[%clk 0:02:20]}  Rxd1+ {[%clk 0:01:42]} 17. Bxd1 {[%clk 0:02:21]}  Qd5 {[%clk 0:01:43]} 18. Qe1 {[%clk 0:02:06]}  Bc5+ {[%clk 0:01:26]} 19. Kh1 {[%clk 0:02:05]}  Re8 {[%clk 0:01:20]} 20. f4 {[%clk 0:02:04]}  Qd3 {[%clk 0:00:56]} 21. Bf3 {[%clk 0:01:57]}  f6 {[%clk 0:00:53]} 22. Be4 {[%clk 0:01:51]}  Qd7 {[%clk 0:00:45]} 23. Be3 {[%clk 0:01:40]}  Bxe3 {[%clk 0:00:34]} 24. Qxe3 {[%clk 0:01:40]}  fxe5 {[%clk 0:00:32]} 25. fxe5 {[%clk 0:01:39]}  Qe6 {[%clk 0:00:29]} 26. Re1 {[%clk 0:01:32]}  b6 {[%clk 0:00:16]} 27. Qf4 {[%clk 0:00:58]}  g6 {[%clk 0:00:13]} 28. a3 {[%clk 0:00:51]}  Kg7 {[%clk 0:00:10]} 29. Bf3 {[%clk 0:00:48]}  Rf8 {[%clk 0:00:08]} 30. Qd4 {[%clk 0:00:46]}  Bd5 {[%clk 0:00:08]} 31. Bxd5 {[%clk 0:00:43]}  cxd5 {[%clk 0:00:08]} 32. Kg1 {[%clk 0:00:42]}  Rc8 {[%clk 0:00:08]} 33. Rd1 {[%clk 0:00:41]}  Rc5 {[%clk 0:00:07]} 34. Rf1 {[%clk 0:00:36]}  Rc4 {[%clk 0:00:05]} 35. Qf2 {[%clk 0:00:30]}  Rc8 {[%clk 0:00:04]} 36. Qd4 {[%clk 0:00:14]}  Re8 {[%clk 0:00:04]} 37. Re1 {[%clk 0:00:12]}  Rf8 {[%clk 0:00:04]} 38. h3 {[%clk 0:00:10]}  h5 {[%clk 0:00:04]} 39. a4 {[%clk 0:00:10]}  a6 {[%clk 0:00:04]} 40. Rb1 {[%clk 0:00:10]}  b5 {[%clk 0:00:04]} 41. axb5 {[%clk 0:00:10]}  axb5 {[%clk 0:00:05]} 42. Rxb5 {[%clk 0:00:10]}  Qa6 {[%clk 0:00:06]} 43. Rxd5 {[%clk 0:00:07]}  Rf1+ {[%clk 0:00:06]} 44. Kh2 {[%clk 0:00:07]}  Qe2 {[%clk 0:00:05]} 45. e6+ {[%clk 0:00:07]}  Kh6 {[%clk 0:00:06]} 46. Qh8# {[%clk 0:00:06]} 1-0


[Site "https://www.chess.com"]

[Event "Titled Tuesday Blitz February 22 Late 2022"]
[White "Pakleza, Zbigniew"]
[Black "Pinheiro, Iung Alicio de O."]
[WhiteFideId "1119290"]
[BlackFideId "2104350"]
[WhiteElo "2467"]
[BlackElo "2593"]
[Result "1-0"]
[Round "09"]
[TimeControl "180+1"]
[Date "2022.02.22"]
[WhiteClock "0:00:08"]
[BlackClock "0:00:07"]

1. d4 {[%clk 0:03:00]}  d5 {[%clk 0:02:58]} 2. Bf4 {[%clk 0:03:00]}  c5 {[%clk 0:02:58]} 3. e3 {[%clk 0:03:00]}  Nc6 {[%clk 0:02:58]} 4. c3 {[%clk 0:03:00]}  Qb6 {[%clk 0:02:55]} 5. Qb3 {[%clk 0:03:00]}  c4 {[%clk 0:02:49]} 6. Qc2 {[%clk 0:02:57]}  e5 {[%clk 0:02:29]} 7. dxe5 {[%clk 0:02:48]}  Bf5 {[%clk 0:02:27]} 8. Qc1 {[%clk 0:02:34]}  g5 {[%clk 0:02:25]} 9. Bg3 {[%clk 0:02:33]}  h5 {[%clk 0:02:18]} 10. h4 {[%clk 0:02:24]}  g4 {[%clk 0:02:14]} 11. Ne2 {[%clk 0:02:18]}  Bg7 {[%clk 0:02:10]} 12. Nd4 {[%clk 0:02:11]}  Nge7 {[%clk 0:02:06]} 13. Be2 {[%clk 0:02:00]}  Bxe5 {[%clk 0:02:02]} 14. O-O {[%clk 0:01:37]}  Bxg3 {[%clk 0:01:52]} 15. fxg3 {[%clk 0:01:38]}  Bg6 {[%clk 0:01:49]} 16. b3 {[%clk 0:01:28]}  Ne5 {[%clk 0:01:37]} 17. Kh2 {[%clk 0:01:18]}  Rc8 {[%clk 0:01:30]} 18. Nd2 {[%clk 0:01:11]}  O-O {[%clk 0:01:22]} 19. bxc4 {[%clk 0:01:03]}  dxc4 {[%clk 0:01:22]} 20. e4 {[%clk 0:01:02]}  Rfd8 {[%clk 0:01:11]} 21. Rb1 {[%clk 0:00:42]}  Qc7 {[%clk 0:01:05]} 22. Qa3 {[%clk 0:00:29]}  a6 {[%clk 0:00:59]} 23. Rfd1 {[%clk 0:00:27]}  N7c6 {[%clk 0:00:51]} 24. Nxc6 {[%clk 0:00:19]}  Qxc6 {[%clk 0:00:50]} 25. Qe7 {[%clk 0:00:17]}  Qc7 {[%clk 0:00:42]} 26. Qg5 {[%clk 0:00:17]}  Kh7 {[%clk 0:00:26]} 27. a4 {[%clk 0:00:15]}  Rd7 {[%clk 0:00:23]} 28. Nf1 {[%clk 0:00:07]}  Nd3 {[%clk 0:00:16]} 29. Ne3 {[%clk 0:00:05]}  Qc5 {[%clk 0:00:10]} 30. Nf5 {[%clk 0:00:05]}  Qe5 {[%clk 0:00:07]} 31. Bxd3 {[%clk 0:00:05]}  cxd3 {[%clk 0:00:06]} 32. Rf1 {[%clk 0:00:04]}  Bxf5 {[%clk 0:00:06]} 33. Rxf5 {[%clk 0:00:04]}  Qg7 {[%clk 0:00:06]} 34. Qxh5+ {[%clk 0:00:03]}  Qh6 {[%clk 0:00:06]} 35. Qxg4 {[%clk 0:00:03]}  d2 {[%clk 0:00:06]} 36. Rh5 {[%clk 0:00:03]}  d1=Q {[%clk 0:00:04]} 37. Rxh6+ {[%clk 0:00:03]}  Kxh6 {[%clk 0:00:05]} 38. Rxd1 {[%clk 0:00:04]}  Rxd1 {[%clk 0:00:05]} 39. Qxd1 {[%clk 0:00:04]}  Rc6 {[%clk 0:00:06]} 40. Qd2+ {[%clk 0:00:05]}  Kg7 {[%clk 0:00:06]} 41. Qf4 {[%clk 0:00:05]}  Rf6 {[%clk 0:00:06]} 42. Qe5 {[%clk 0:00:06]}  Kg6 {[%clk 0:00:07]} 43. h5+ {[%clk 0:00:07]}  Kg7 {[%clk 0:00:06]} 44. Qg5+ {[%clk 0:00:07]}  Rg6 {[%clk 0:00:06]} 45. hxg6 {[%clk 0:00:08]}  fxg6 {[%clk 0:00:07]} 46. e5 {[%clk 0:00:08]} 1-0


[Site "https://www.chess.com"]

[Event "Titled Tuesday Blitz February 22 Late 2022"]
[White "Paravyan, David"]
[Black "Mekhitarian, Krikor Sevag"]
[WhiteFideId "4194985"]
[BlackFideId "2107660"]
[WhiteElo "2569"]
[BlackElo "2598"]
[Result "1-0"]
[Round "09"]
[TimeControl "180+1"]
[Date "2022.02.22"]
[WhiteClock "0:01:49"]
[BlackClock "0:00:17"]

1. e4 {[%clk 0:03:00]}  c5 {[%clk 0:02:59]} 2. Nf3 {[%clk 0:03:01]}  g6 {[%clk 0:02:58]} 3. d4 {[%clk 0:03:00]}  cxd4 {[%clk 0:02:58]} 4. Nxd4 {[%clk 0:03:01]}  Nc6 {[%clk 0:02:58]} 5. c4 {[%clk 0:03:01]}  Nf6 {[%clk 0:02:58]} 6. Nc3 {[%clk 0:03:02]}  d6 {[%clk 0:02:59]} 7. f3 {[%clk 0:03:02]}  Nxd4 {[%clk 0:02:54]} 8. Qxd4 {[%clk 0:03:03]}  Bg7 {[%clk 0:02:53]} 9. Be3 {[%clk 0:03:03]}  O-O {[%clk 0:02:52]} 10. Qd2 {[%clk 0:03:04]}  a5 {[%clk 0:02:44]} 11. b3 {[%clk 0:03:03]}  a4 {[%clk 0:02:38]} 12. b4 {[%clk 0:03:03]}  Be6 {[%clk 0:02:38]} 13. Rc1 {[%clk 0:03:00]}  Nd7 {[%clk 0:02:33]} 14. Nb5 {[%clk 0:02:54]}  Ne5 {[%clk 0:01:53]} 15. Be2 {[%clk 0:02:53]}  Rc8 {[%clk 0:01:52]} 16. Na3 {[%clk 0:02:52]}  f5 {[%clk 0:01:49]} 17. exf5 {[%clk 0:02:50]}  Bxf5 {[%clk 0:01:47]} 18. O-O {[%clk 0:02:47]}  Be6 {[%clk 0:01:41]} 19. Rfd1 {[%clk 0:02:44]}  Bf7 {[%clk 0:01:34]} 20. f4 {[%clk 0:02:40]}  Nc6 {[%clk 0:01:31]} 21. Bf3 {[%clk 0:02:36]}  Kh8 {[%clk 0:01:24]} 22. Nb5 {[%clk 0:02:29]}  a3 {[%clk 0:01:21]} 23. Nxa3 {[%clk 0:02:27]}  Ra8 {[%clk 0:01:22]} 24. Nb5 {[%clk 0:02:27]}  Qd7 {[%clk 0:01:17]} 25. a3 {[%clk 0:02:26]}  Rfd8 {[%clk 0:01:09]} 26. Bb6 {[%clk 0:02:23]}  Rdc8 {[%clk 0:01:08]} 27. h3 {[%clk 0:02:21]}  Nd8 {[%clk 0:00:51]} 28. Bd5 {[%clk 0:02:19]}  Bxd5 {[%clk 0:00:46]} 29. Qxd5 {[%clk 0:02:19]}  Qc6 {[%clk 0:00:46]} 30. Be3 {[%clk 0:02:05]}  Qd7 {[%clk 0:00:36]} 31. Rd3 {[%clk 0:02:02]}  Qf5 {[%clk 0:00:32]} 32. Qxf5 {[%clk 0:01:58]}  gxf5 {[%clk 0:00:33]} 33. c5 {[%clk 0:01:56]}  Nf7 {[%clk 0:00:28]} 34. cxd6 {[%clk 0:01:54]}  Rxc1+ {[%clk 0:00:28]} 35. Bxc1 {[%clk 0:01:55]}  exd6 {[%clk 0:00:29]} 36. Nxd6 {[%clk 0:01:53]}  Nd8 {[%clk 0:00:17]} 37. Nxf5 {[%clk 0:01:50]}  Ne6 {[%clk 0:00:16]} 38. Nxg7 {[%clk 0:01:50]}  Kxg7 {[%clk 0:00:17]} 39. f5 {[%clk 0:01:49]} 1-0


[Site "https://www.chess.com"]